bitfinex/quotes_BTCUSD_20240719
["timestamp","ask_amount","ask_price","bid_price","bid_amount"]
[1721385078477,0.00834,64179.0,64178.0,2.29336274]
[1721385078677,0.00834,64179.0,64178.0,2.30736274]
[1721385080087,0.00834,64179.0,64178.0,2.29336274]
[1721385082130,0.00834,64179.0,64178.0,2.30736274]
[1721385082665,0.00834,64179.0,64178.0,2.29336274]
[1721385082894,0.00834,64179.0,64178.0,2.30736274]
[1721385083470,0.00834,64185.0,64179.0,1.763954]
[1721385083669,0.00834,64185.0,64179.0,2.04133574]
[1721385085342,0.00834,64185.0,64179.0,2.05533574]
[1721385085552,0.00834,64185.0,64179.0,2.06933574]
[1721385086351,0.00834,64185.0,64179.0,2.19872598]
[1721385086569,0.00834,64185.0,64179.0,2.26422598]
[1721385087331,1e-06,64189.0,64188.0,1.763712]
[1721385087538,0.01034,64209.0,64201.0,0.467281]
[1721385087539,0.14558802,64207.0,64201.0,0.467281]
[1721385087751,0.14558802,64207.0,64201.0,1.14588374]
[1721385087952,0.00018802,64207.0,64201.0,1.89827722]
[1721385088162,0.00018802,64207.0,64206.0,1.090239]
[1721385088376,0.00018802,64207.0,64206.0,1.42042218]
[1721385088573,0.00018802,64207.0,64206.0,1.49696226]
[1721385088777,0.00018802,64207.0,64206.0,1.45732074]
[1721385089389,0.00018802,64207.0,64206.0,1.65950917]
[1721385089797,0.00018802,64207.0,64206.0,1.68261476]
[1721385089995,0.00018802,64207.0,64206.0,2.10021176]
[1721385090199,0.00018802,64207.0,64206.0,1.78871476]
[1721385090421,0.00018802,64207.0,64206.0,1.80271476]
[1721385090640,0.00018802,64207.0,64206.0,2.26530764]
[1721385091247,0.00018802,64207.0,64206.0,2.31530764]
[1721385091503,0.00018802,64207.0,64206.0,2.19996393]
[1721385091718,0.00018802,64207.0,64206.0,2.31529992]
[1721385091933,0.00018802,64207.0,64206.0,2.34488881]
[1721385092422,0.01034,64209.0,64208.0,1.615991]
[1721385092629,0.01034,64209.0,64208.0,2.28419573]
[1721385092801,0.01034,64209.0,64208.0,2.44532522]
[1721385094661,0.01034,64209.0,64208.0,2.44531814]
[1721385094798,0.00018799,64217.0,64216.0,1.401516]
[1721385095002,0.00018799,64217.0,64216.0,2.03202665]
[1721385095413,0.00018799,64217.0,64216.0,2.14315614]
[1721385095815,0.00018799,64217.0,64216.0,2.31614837]
[1721385096017,0.00018799,64217.0,64216.0,2.50894837]
[1721385096214,0.00018799,64217.0,64216.0,2.52294837]
[1721385096495,0.00018799,64217.0,64216.0,2.51425614]
[1721385096917,0.00018799,64217.0,64216.0,2.83970414]
[1721385097138,9.9e-07,64217.0,64216.0,2.47825614]
[1721385097351,9.9e-07,64217.0,64216.0,1.85970814]
[1721385097553,9.9e-07,64217.0,64216.0,1.80742337]
[1721385097766,9.9e-07,64217.0,64216.0,2.06002202]
[1721385098175,9.9e-07,64217.0,64216.0,1.74857402]
[1721385098555,0.1434,64225.0,64216.0,1.74857402]
[1721385098556,0.1434,64225.0,64224.0,0.467115]
[1721385098797,0.1434,64225.0,64224.0,1.03290674]
[1721385099239,7.809e-05,64227.0,64224.0,1.03290674]
[1721385099240,7.809e-05,64227.0,64225.0,0.778512]
[1721385099449,7.809e-05,64227.0,64225.0,1.47361711]
[1721385099450,0.00434,64226.0,64225.0,1.47361711]
[1721385099654,0.00434,64226.0,64225.0,1.49661711]
[1721385100276,0.00434,64226.0,64225.0,1.72041711]
[1721385100680,0.00434,64226.0,64225.0,1.59109874]
[1721385100890,0.00434,64226.0,64225.0,1.72041285]
[1721385101635,0.00434,64226.0,64225.0,1.73341285]
[1721385102209,0.00434,64226.0,64225.0,1.74641285]
[1721385103749,0.00434,64226.0,64225.0,0.28038174]
[1721385103750,0.14644,64226.0,64225.0,0.28038174]
[1721385103955,0.30214,64226.0,64225.0,0.026]
[1721385104368,0.61354,64226.0,64225.0,0.026]
[1721385104835,0.1386,64223.0,64220.0,0.155714]
[1721385105082,0.1415,64222.0,64221.0,0.15438174]
[1721385105821,0.297209,64222.0,64221.0,0.15438174]
[1721385106023,0.1415,64222.0,64221.0,0.15438174]
[1721385106471,0.297209,64222.0,64221.0,0.15438174]
[1721385107086,0.1415,64222.0,64221.0,0.15438174]
[1721385107584,0.297209,64222.0,64221.0,0.16338174]
[1721385108009,0.297209,64222.0,64221.0,0.15438174]
[1721385108217,0.297209,64222.0,64221.0,0.16238174]
[1721385108832,0.297209,64222.0,64221.0,0.17238174]
[1721385109039,0.298039,64222.0,64221.0,0.17238174]
[1721385109253,0.298039,64222.0,64221.0,0.16238174]
[1721385109677,0.298039,64222.0,64221.0,0.17138174]
[1721385111671,0.609458,64222.0,64221.0,0.17138174]
[1721385111871,0.609458,64222.0,64221.0,0.017]
[1721385111872,0.920877,64222.0,64221.0,0.017]
[1721385112255,1.232296,64222.0,64221.0,0.017]
[1721385112656,1.232296,64222.0,64206.0,0.000913]
[1721385112657,0.05,64216.0,64206.0,0.000913]
[1721385113005,0.1468,64221.0,64206.0,0.000913]
[1721385113006,0.92553,64207.0,64206.0,0.000913]
[1721385113225,1.237022,64207.0,64206.0,0.000913]
[1721385114298,0.92553,64207.0,64206.0,0.000913]
[1721385114648,0.92533,64207.0,64206.0,0.000913]
[1721385114851,0.92483,64207.0,64206.0,0.000913]
[1721385115103,0.001,64207.0,64206.0,1.24553374]
[1721385115330,0.001,64207.0,64206.0,1.36853374]
[1721385115537,0.1468,64214.0,64213.0,0.155731]
[1721385115813,0.1468,64214.0,64213.0,0.93303874]
[1721385115814,0.1463,64214.0,64213.0,0.93303874]
[1721385116252,0.1462,64214.0,64213.0,0.93303874]
[1721385116454,0.146,64214.0,64213.0,0.93303874]
[1721385116668,0.1457,64214.0,64213.0,0.93303874]
[1721385117316,0.1456,64214.0,64213.0,0.93303874]
[1721385118355,0.1456,64214.0,64213.0,0.94103874]
[1721385118752,0.1466,64214.0,64213.0,0.95573651]
[1721385119606,0.1466,64214.0,64213.0,0.94703874]
[1721385119810,0.001,64214.0,64213.0,1.38784424]
[1721385119962,0.001,64214.0,64213.0,1.38784311]
[1721385120170,0.001,64214.0,64213.0,1.38784398]
[1721385120571,0.001,64214.0,64213.0,1.28150174]
[1721385121144,0.0615,64219.0,64217.0,0.155721]
[1721385121356,0.0615,64219.0,64217.0,0.31010274]
[1721385122392,0.0615,64219.0,64217.0,0.31610274]
[1721385122652,0.0615,64219.0,64218.0,0.155719]
[1721385123987,0.079,64221.0,64220.0,0.467143]
[1721385124197,0.079,64221.0,64220.0,0.62152474]
[1721385124370,0.079,64221.0,64220.0,0.93295374]
[1721385124616,0.00083,64222.0,64221.0,0.77856]
[1721385124819,0.00083,64222.0,64221.0,0.93294174]
[1721385125334,0.00083,64222.0,64221.0,1.24436574]
[1721385125542,0.00083,64222.0,64221.0,1.72008974]
[1721385125747,0.00083,64222.0,64221.0,1.94941041]
[1721385125955,0.00083,64222.0,64221.0,1.95440789]
[1721385126160,0.00083,64222.0,64221.0,1.94940789]
[1721385126494,0.00083,64222.0,64221.0,1.95540789]
[1721385126694,0.00083,64222.0,64221.0,1.35036574]
[1721385127706,0.06233,64222.0,64221.0,0.72951774]
[1721385127868,0.06233,64222.0,64221.0,0.31009374]
[1721385128066,0.06233,64222.0,64221.0,0.32409374]
[1721385128418,0.06233,64222.0,64221.0,0.18238174]
[1721385128771,0.06233,64222.0,64219.0,0.155717]
[1721385128945,0.06233,64222.0,64221.0,0.023]
[1721385129369,0.06233,64222.0,64221.0,0.012]
[1721385129487,0.06233,64222.0,64219.0,0.155715]
[1721385129689,0.06233,64222.0,64221.0,0.01]
[1721385130195,0.840877,64222.0,64221.0,0.01]
[1721385130397,0.921277,64222.0,64221.0,0.01]
[1721385130999,0.155723,64217.0,64212.0,0.155733]
[1721385131203,0.155723,64217.0,64208.0,0.155743]
[1721385131204,0.155726,64215.0,64208.0,0.155743]
[1721385131400,0.467179,64215.0,64207.0,0.467234]
[1721385131601,0.467179,64215.0,64204.0,0.311505]
[1721385131602,0.467179,64215.0,64208.0,0.255743]
[1721385131803,0.467179,64215.0,64205.0,0.002794]
[1721385131804,0.778632,64215.0,64205.0,0.002794]
[1721385132006,1.237485,64215.0,64204.0,0.002794]
[1721385132230,1.237485,64215.0,64203.0,0.002794]
[1721385132231,1.287485,64215.0,64203.0,0.002794]
[1721385132432,1.287485,64215.0,64214.0,0.01369682]
[1721385132433,1.237485,64215.0,64214.0,0.01369682]
[1721385132635,1.237485,64215.0,64214.0,0.01769682]
[1721385133066,1.237485,64215.0,64214.0,0.01269682]
[1721385133648,1.287485,64215.0,64214.0,0.01269682]
[1721385133862,1.237485,64215.0,64214.0,0.01269682]
[1721385134074,1.287485,64215.0,64214.0,0.01269682]
[1721385134677,1.289485,64215.0,64214.0,0.01269682]
[1721385135060,1.239485,64215.0,64214.0,0.01269682]
[1721385136248,1.289485,64215.0,64214.0,0.01269682]
[1721385136468,1.239485,64215.0,64214.0,0.01269682]
[1721385137448,1.289485,64215.0,64214.0,0.01269682]
[1721385137889,1.97911974,64215.0,64214.0,0.01269682]
[1721385138096,1.98882369,64215.0,64214.0,0.01269682]
[1721385138298,2.07919509,64215.0,64214.0,0.01269682]
[1721385139004,1.98882369,64215.0,64214.0,0.01269682]
[1721385140198,1.93882369,64215.0,64214.0,0.01269682]
[1721385140398,1.75531974,64215.0,64214.0,0.01269682]
[1721385140598,1.76502437,64215.0,64214.0,0.01269682]
[1721385140774,1.71502437,64215.0,64214.0,0.01269682]
[1721385140978,1.76502437,64215.0,64214.0,0.01269682]
[1721385141179,1.239485,64215.0,64214.0,0.01269682]
[1721385141582,1.239485,64215.0,64214.0,0.01360982]
[1721385142620,1.513285,64215.0,64214.0,0.01360982]
[1721385143481,2.13346931,64215.0,64214.0,0.01360982]
[1721385143814,2.14317355,64215.0,64214.0,0.01360982]
[1721385144015,1.98882398,64215.0,64214.0,0.01360982]
[1721385145776,1.98882398,64215.0,64214.0,0.004913]
[1721385146711,1.98882443,64215.0,64214.0,0.004913]
[1721385148292,2.08882443,64215.0,64214.0,0.004913]
[1721385148501,2.15122343,64215.0,64214.0,0.004913]
[1721385148875,2.617026,64215.0,64214.0,0.004913]
[1721385149043,2.615026,64215.0,64214.0,0.000913]
[1721385149442,2.617026,64215.0,64214.0,0.002913]
[1721385149670,2.615026,64215.0,64214.0,0.001913]
[1721385149889,2.61502645,64215.0,64214.0,0.000913]
[1721385150087,2.61502645,64215.0,64214.0,0.001913]
[1721385150088,2.61702645,64215.0,64214.0,0.001913]
[1721385151248,2.61702645,64215.0,64214.0,0.002913]
[1721385151451,2.61502645,64215.0,64214.0,0.001913]
[1721385151753,2.62102645,64215.0,64214.0,0.001913]
[1721385151976,2.24287688,64215.0,64214.0,0.000913]
[1721385152189,2.24287688,64215.0,64214.0,0.001913]
[1721385152190,1.032032,64215.0,64214.0,0.001913]
[1721385152377,0.012,64215.0,64214.0,0.002913]
[1721385152580,0.167726,64215.0,64214.0,0.002913]
[1721385152846,0.167726,64215.0,64214.0,0.4691]
[1721385152847,0.012,64215.0,64214.0,0.4691]
[1721385153052,0.156548,64219.0,64214.0,0.156642]
[1721385153555,0.155719,64218.0,64214.0,0.157642]
[1721385153755,0.155719,64218.0,64215.0,0.00869585]
[1721385154911,0.467172,64216.0,64215.0,0.00869585]
[1721385155127,0.77862,64216.0,64215.0,0.00869585]
[1721385155318,0.77862,64216.0,64215.0,0.01169585]
[1721385156155,0.77862,64216.0,64215.0,0.00869585]
[1721385156332,0.77962,64216.0,64215.0,0.00869585]
[1721385157048,0.77962,64216.0,64215.0,0.00969585]
[1721385157776,0.77862,64216.0,64215.0,0.00969585]
[1721385157992,0.77962,64216.0,64215.0,0.00969585]
[1721385158499,0.77962,64216.0,64215.0,0.00869585]
[1721385158707,0.78062,64216.0,64215.0,0.00869585]
[1721385158914,0.78062,64216.0,64215.0,0.01069585]
[1721385159115,0.469172,64216.0,64215.0,0.01069585]
[1721385159323,0.157724,64216.0,64215.0,0.15639585]
[1721385159524,0.157724,64216.0,64215.0,0.15439585]
[1721385159662,0.157724,64216.0,64215.0,0.15539585]
[1721385160397,0.002,64216.0,64215.0,0.15439585]
[1721385160557,0.002,64216.0,64215.0,0.93402785]
[1721385160763,0.002,64216.0,64215.0,0.91528613]
[1721385161371,0.00083,64219.0,64218.0,0.155719]
[1721385162146,0.00083,64219.0,64218.0,0.467158]
[1721385162760,0.00083,64219.0,64218.0,0.155719]
[1721385162959,0.00083,64219.0,64218.0,0.160719]
[1721385163390,0.00083,64219.0,64218.0,0.472158]
[1721385163623,0.00083,64219.0,64218.0,0.783597]
[1721385163834,0.00083,64219.0,64218.0,0.789597]
[1721385163982,0.00083,64219.0,64218.0,0.478158]
[1721385164408,0.00083,64219.0,64218.0,0.472158]
[1721385164816,0.00083,64219.0,64218.0,0.467158]
[1721385165024,0.00083,64219.0,64218.0,0.155719]
[1721385165232,0.00083,64219.0,64218.0,0.006]
[1721385165522,0.00083,64219.0,64218.0,0.161719]
[1721385165900,0.00083,64219.0,64218.0,0.169719]
[1721385166096,0.00083,64219.0,64218.0,0.163719]
[1721385166326,0.00083,64219.0,64216.0,0.155722]
[1721385166521,0.00083,64219.0,64218.0,0.004]
[1721385166721,0.156547,64219.0,64218.0,0.009]
[1721385166927,0.00083,64219.0,64218.0,0.009]
[1721385167319,0.00083,64219.0,64218.0,0.004]
[1721385167854,0.3969461,64219.0,64216.0,0.008]
[1721385168111,0.85581,64217.0,64216.0,0.008]
[1721385168353,1.167254,64217.0,64216.0,0.008]
[1721385169528,1.169254,64217.0,64216.0,0.008]
[1721385169850,0.778632,64215.0,64214.0,0.000913]
[1721385170315,1.204285,64215.0,64214.0,0.000913]
[1721385170531,1.154285,64215.0,64214.0,0.000913]
[1721385170740,1.19289626,64215.0,64214.0,0.000913]
[1721385170923,1.24289626,64215.0,64214.0,0.000913]
[1721385171232,1.19289626,64215.0,64214.0,0.000913]
[1721385171996,1.16398888,64215.0,64214.0,0.000913]
[1721385172432,1.154285,64215.0,64214.0,0.000913]
[1721385172985,1.16398879,64215.0,64214.0,0.002913]
[1721385173388,1.16398879,64215.0,64214.0,0.000913]
[1721385173591,1.16398879,64215.0,64214.0,0.001913]
[1721385173592,1.16798879,64215.0,64214.0,0.001913]
[1721385173784,1.32233836,64215.0,64214.0,0.001913]
[1721385174440,1.5267201,64215.0,64214.0,0.001913]
[1721385174646,1.6086201,64215.0,64214.0,0.001913]
[1721385174811,1.6046201,64215.0,64214.0,0.000913]
[1721385175016,1.60462067,64215.0,64214.0,0.000913]
[1721385175214,1.60862067,64215.0,64214.0,0.001913]
[1721385175451,1.70187427,64215.0,64214.0,0.000913]
[1721385175852,1.70187427,64215.0,64214.0,0.001913]
[1721385175853,1.70587427,64215.0,64214.0,0.001913]
[1721385176435,1.72918767,64215.0,64214.0,0.001913]
[1721385177045,2.04064067,64215.0,64214.0,0.001913]
[1721385177245,1.92407367,64215.0,64214.0,0.001913]
[1721385178176,2.02407367,64215.0,64214.0,0.001913]
[1721385180880,2.0240745,64215.0,64214.0,0.001913]
[1721385182877,2.34473387,64215.0,64214.0,0.001913]
[1721385183927,2.34473436,64215.0,64214.0,0.001913]
[1721385185842,2.19038479,64215.0,64214.0,0.001913]
[1721385187180,2.18067911,64215.0,64214.0,0.001913]
[1721385187482,1.88863737,64215.0,64214.0,0.001913]
[1721385188643,1.88863736,64215.0,64214.0,0.001913]
[1721385190485,1.88863747,64215.0,64214.0,0.001913]
[1721385190711,2.04298704,64215.0,64214.0,0.001913]
[1721385193628,2.03328131,64215.0,64214.0,0.001913]
[1721385193758,2.04298674,64215.0,64214.0,0.001913]
[1721385193964,2.03328111,64215.0,64214.0,0.001913]
[1721385196578,2.06798509,64215.0,64214.0,0.001913]
[1721385196812,2.0676058,64215.0,64214.0,0.001913]
[1721385200021,2.02357568,64215.0,64214.0,0.001913]
[1721385200197,2.06763143,64215.0,64214.0,0.001913]
[1721385200757,2.01763143,64215.0,64214.0,0.001913]
[1721385200985,0.89872746,64215.0,64214.0,0.001913]
[1721385201181,0.01770556,64215.0,64214.0,0.145313]
[1721385201414,0.008,64215.0,64214.0,0.145313]
[1721385201786,0.163726,64215.0,64214.0,0.145313]
[1721385202530,0.163726,64215.0,64214.0,0.144313]
[1721385202531,0.155726,64215.0,64214.0,0.144313]
[1721385202688,0.159726,64215.0,64214.0,0.145313]
[1721385203119,0.155726,64215.0,64214.0,0.144313]
[1721385203651,0.155726,64215.0,64214.0,0.145313]
[1721385203854,0.155726,64215.0,64214.0,0.148313]
[1721385204807,0.155724,64216.0,64214.0,0.148313]
[1721385205759,0.00083,64217.0,64215.0,0.293825]
[1721385205921,0.00083,64217.0,64216.0,0.293824]
[1721385207358,0.00083,64217.0,64216.0,0.605272]
[1721385207596,0.00083,64217.0,64216.0,0.606272]
[1721385208016,0.00083,64217.0,64216.0,0.609272]
[1721385209699,0.00083,64217.0,64216.0,0.1421]
[1721385210115,0.467996,64217.0,64216.0,0.1421]
[1721385210325,0.77944,64217.0,64216.0,0.1421]
[1721385210742,0.467996,64217.0,64216.0,0.1421]
[1721385210944,0.467996,64217.0,64216.0,0.1391]
[1721385211144,0.00083,64217.0,64216.0,0.1391]
[1721385212167,0.00083,64217.0,64216.0,0.1381]
[1721385212579,0.00183,64217.0,64216.0,0.1381]
[1721385212780,0.00083,64217.0,64216.0,0.1381]
[1721385213161,0.00083,64217.0,64216.0,0.1391]
[1721385213401,0.00083,64217.0,64216.0,0.1381]
[1721385213613,0.00083,64217.0,64216.0,0.1411]
[1721385213813,0.00083,64217.0,64216.0,0.1421]
[1721385213994,0.00083,64217.0,64216.0,0.1411]
[1721385214339,0.00083,64217.0,64216.0,0.1381]
[1721385214468,0.00083,64217.0,64216.0,0.1411]
[1721385215458,0.00083,64217.0,64216.0,0.1421]
[1721385215660,0.00083,64217.0,64216.0,0.1411]
[1721385215860,0.00083,64217.0,64216.0,0.1381]
[1721385216082,0.00083,64217.0,64216.0,0.1391]
[1721385216309,0.00083,64217.0,64216.0,0.1381]
[1721385216480,0.00083,64217.0,64216.0,0.1411]
[1721385216686,0.00083,64217.0,64216.0,0.1421]
[1721385217965,0.00083,64217.0,64216.0,0.1391]
[1721385218577,0.156552,64217.0,64216.0,0.1381]
[1721385218917,0.156552,64217.0,64216.0,0.1391]
[1721385219351,0.156552,64217.0,64216.0,0.1421]
[1721385219503,0.156552,64217.0,64216.0,0.1431]
[1721385219504,0.467996,64217.0,64216.0,0.1431]
[1721385219955,0.467996,64217.0,64216.0,0.1401]
[1721385220380,0.156552,64217.0,64216.0,0.1381]
[1721385221005,0.467996,64217.0,64216.0,0.1411]
[1721385221786,0.467996,64217.0,64216.0,0.1421]
[1721385222191,0.467996,64217.0,64216.0,0.1411]
[1721385222351,0.77944,64217.0,64216.0,0.003]
[1721385222554,1.38616574,64217.0,64216.0,0.003]
[1721385222767,1.98011346,64217.0,64216.0,0.003]
[1721385223002,0.828632,64215.0,64214.0,0.000913]
[1721385223201,1.25417046,64215.0,64214.0,0.000913]
[1721385224191,1.30417046,64215.0,64214.0,0.000913]
[1721385224393,1.45852003,64215.0,64214.0,0.000913]
[1721385224820,1.32404201,64215.0,64214.0,0.000913]
[1721385225025,1.25417046,64215.0,64214.0,0.000913]
[1721385225373,1.32405541,64215.0,64214.0,0.000913]
[1721385225562,1.25817136,64215.0,64214.0,0.001913]
[1721385227158,1.30817136,64215.0,64214.0,0.001913]
[1721385227362,1.46252093,64215.0,64214.0,0.001913]
[1721385227674,1.41252093,64215.0,64214.0,0.001913]
[1721385227877,1.25817136,64215.0,64214.0,0.001913]
[1721385228486,1.25817125,64215.0,64214.0,0.001913]
[1721385229453,1.30817125,64215.0,64214.0,0.001913]
[1721385229651,1.39397125,64215.0,64214.0,0.001913]
[1721385230251,1.44397125,64215.0,64214.0,0.001913]
[1721385230452,1.59832082,64215.0,64214.0,0.001913]
[1721385232792,1.66821244,64215.0,64214.0,0.001913]
[1721385233976,2.32122682,64215.0,64214.0,0.001913]
[1721385234670,2.3546615,64215.0,64214.0,0.001913]
[1721385235327,2.30752231,64215.0,64214.0,0.000913]
[1721385235536,2.30752231,64215.0,64214.0,0.002913]
[1721385235537,2.36203834,64215.0,64214.0,0.002913]
[1721385235747,2.32822796,64215.0,64214.0,0.002913]
[1721385235910,2.31722796,64215.0,64214.0,0.000913]
[1721385236113,2.40682796,64215.0,64214.0,0.000913]
[1721385236291,2.41782796,64215.0,64214.0,0.002913]
[1721385236733,2.41782796,64215.0,64214.0,0.001913]
[1721385237112,2.40682796,64215.0,64214.0,0.001913]
[1721385237915,2.40682799,64215.0,64214.0,0.001913]
[1721385238580,2.42082799,64215.0,64214.0,0.001913]
[1721385238784,2.44647423,64215.0,64214.0,0.001913]
[1721385238998,2.41265799,64215.0,64214.0,0.001913]
[1721385239214,2.42665799,64215.0,64214.0,0.002913]
[1721385239407,2.42165799,64215.0,64214.0,0.001913]
[1721385239618,2.42165799,64215.0,64214.0,0.002913]
[1721385239619,2.27230842,64215.0,64214.0,0.002913]
[1721385239865,2.27230842,64215.0,64214.0,0.001913]
[1721385239866,2.06644603,64215.0,64214.0,0.001913]
[1721385240074,1.87757953,64215.0,64214.0,0.001913]
[1721385240288,1.95307094,64215.0,64214.0,0.002913]
[1721385240720,1.85014862,64215.0,64214.0,0.002913]
[1721385240934,1.86827299,64215.0,64214.0,0.002913]
[1721385241372,1.91827299,64215.0,64214.0,0.002913]
[1721385241529,1.91327299,64215.0,64214.0,0.001913]
[1721385241784,2.05362256,64215.0,64214.0,0.000913]
[1721385241990,2.06962256,64215.0,64214.0,0.002913]
[1721385242221,2.05862256,64215.0,64214.0,0.001913]
[1721385242755,2.06962256,64215.0,64214.0,0.002913]
[1721385243227,1.91527299,64215.0,64214.0,0.002913]
[1721385243461,1.81234974,64215.0,64214.0,0.002913]
[1721385243694,1.91528707,64215.0,64214.0,0.002913]
[1721385244398,1.88365442,64215.0,64214.0,0.002913]
[1721385248008,1.95875442,64215.0,64214.0,0.002913]
[1721385248186,2.11310399,64215.0,64214.0,0.002913]
[1721385248858,2.10339931,64215.0,64214.0,0.002913]
[1721385249072,2.1131045,64215.0,64214.0,0.002913]
[1721385250026,2.10339931,64215.0,64214.0,0.002913]
[1721385250267,2.11310446,64215.0,64214.0,0.002913]
[1721385252168,2.17560446,64215.0,64214.0,0.002913]
[1721385252411,2.20921375,64215.0,64214.0,0.002913]
[1721385253378,2.16589931,64215.0,64214.0,0.002913]
[1721385253530,2.20925063,64215.0,64214.0,0.002913]
[1721385256646,2.20929058,64215.0,64214.0,0.002913]
[1721385259872,2.16589931,64215.0,64214.0,0.002913]
[1721385260102,2.2093046,64215.0,64214.0,0.002913]
[1721385261661,2.05495503,64215.0,64214.0,0.002913]
[1721385262463,2.19490099,64215.0,64214.0,0.002913]
[1721385262691,2.05495503,64215.0,64214.0,0.002913]
[1721385264980,2.38940803,64215.0,64214.0,0.002913]
[1721385267363,2.06256212,64215.0,64214.0,0.002913]
[1721385272674,2.01887525,64215.0,64214.0,0.002913]
[1721385272914,2.06233405,64215.0,64214.0,0.002913]
[1721385275452,1.91740854,64215.0,64214.0,0.002913]
[1721385276116,1.91742227,64215.0,64214.0,0.002913]
[1721385278063,2.37497527,64215.0,64214.0,0.002913]
[1721385278263,2.53275531,64215.0,64214.0,0.002913]
[1721385279190,2.53217031,64215.0,64214.0,0.002913]
[1721385279386,2.22071731,64215.0,64214.0,0.002913]
[1721385280491,2.15592761,64215.0,64214.0,0.002913]
[1721385280694,2.07462761,64215.0,64214.0,0.002913]
[1721385282430,2.07452409,64215.0,64214.0,0.002913]
[1721385282842,2.22887366,64215.0,64214.0,0.002913]
[1721385284853,2.07104126,64215.0,64214.0,0.002913]
[1721385287016,1.91669169,64215.0,64214.0,0.002913]
[1721385287709,2.07454445,64215.0,64214.0,0.002913]
[1721385288894,2.07412141,64215.0,64214.0,0.002913]
[1721385290353,1.91626407,64215.0,64214.0,0.002913]
[1721385292047,1.91626123,64215.0,64214.0,0.002913]
[1721385293682,2.4474638,64215.0,64214.0,0.002913]
[1721385293917,1.451714,64207.0,64206.0,0.000913]
[1721385294151,1.70540106,64207.0,64206.0,0.000913]
[1721385295494,1.71040146,64207.0,64206.0,0.000913]
[1721385296245,1.87275103,64207.0,64206.0,0.001913]
[1721385297879,1.71840146,64207.0,64206.0,0.001913]
[1721385298336,1.70869574,64207.0,64206.0,0.001913]
[1721385298572,1.71840157,64207.0,64206.0,0.001913]
[1721385298817,1.70869574,64207.0,64206.0,0.001913]
[1721385299043,1.71840157,64207.0,64206.0,0.001913]
[1721385299776,1.80869552,64207.0,64206.0,0.001913]
[1721385301471,1.80869564,64207.0,64206.0,0.001913]
[1721385302409,1.62880169,64207.0,64206.0,0.001913]
[1721385302651,1.75011823,64207.0,64206.0,0.001913]
[1721385304094,1.75027677,64207.0,64206.0,0.001913]
[1721385306302,1.82190798,64207.0,64206.0,0.001913]
[1721385306578,2.25639998,64207.0,64206.0,0.001913]
[1721385306853,2.48984955,64207.0,64206.0,0.001913]
[1721385307331,2.49019959,64207.0,64206.0,0.001913]
[1721385307563,2.49019959,64207.0,64206.0,0.000913]
[1721385307564,2.48219959,64207.0,64206.0,0.000913]
[1721385308057,2.48919959,64207.0,64206.0,0.001913]
[1721385308531,2.51219959,64207.0,64206.0,0.003913]
[1721385309043,2.50119959,64207.0,64206.0,0.002913]
[1721385309292,2.50141222,64207.0,64206.0,0.002913]
[1721385309540,2.51241222,64207.0,64206.0,0.003913]
[1721385310551,2.47026852,64207.0,64206.0,0.003913]
[1721385310787,2.512366,64207.0,64206.0,0.003913]
[1721385312309,2.512366,64207.0,64195.0,0.0765]
[1721385312310,1.451952,64196.0,64195.0,0.0765]
[1721385312540,0.517332,64194.0,64193.0,0.0654]
[1721385312787,1.56608601,64194.0,64193.0,0.0654]
[1721385313031,1.65568601,64194.0,64193.0,0.1456]
[1721385313503,1.77246767,64194.0,64193.0,0.1456]
[1721385313774,1.65568618,64194.0,64193.0,0.1456]
[1721385314030,0.47703944,64194.0,64193.0,0.1456]
[1721385314529,0.467332,64194.0,64193.0,0.1456]
[1721385314767,0.778887,64194.0,64193.0,0.1456]
[1721385315277,0.155775,64195.0,64193.0,0.1456]
[1721385315516,0.155775,64195.0,64187.0,0.311586]
[1721385315517,0.008,64194.0,64187.0,0.311586]
[1721385315786,0.008,64194.0,64190.0,0.155786]
[1721385316269,0.155782,64192.0,64188.0,0.155791]
[1721385316562,0.155781,64193.0,64188.0,0.155791]
[1721385316782,0.005,64194.0,64193.0,0.1463]
[1721385317054,0.155777,64194.0,64193.0,0.1463]
[1721385317291,0.155777,64194.0,64193.0,0.1473]
[1721385317555,0.155777,64194.0,64193.0,0.1463]
[1721385318751,0.155777,64194.0,64193.0,0.1483]
[1721385318994,0.155776,64195.0,64194.0,0.1423]
[1721385320220,0.155776,64195.0,64194.0,0.1443]
[1721385320499,0.155776,64195.0,64194.0,0.1453]
[1721385321481,0.778876,64195.0,64194.0,0.1453]
[1721385322736,0.778876,64195.0,64194.0,0.1433]
[1721385323233,0.778876,64195.0,64194.0,0.1423]
[1721385323736,0.780876,64195.0,64194.0,0.1423]
[1721385324264,0.783876,64195.0,64194.0,0.1423]
[1721385324492,0.781876,64195.0,64194.0,0.1423]
[1721385324990,0.784876,64195.0,64194.0,0.1423]
[1721385325233,0.781876,64195.0,64194.0,0.1423]
[1721385325710,0.780876,64195.0,64194.0,0.1423]
[1721385326738,0.472326,64195.0,64194.0,0.1423]
[1721385326961,0.470326,64195.0,64194.0,0.1423]
[1721385327261,0.472326,64195.0,64194.0,0.1423]
[1721385330189,0.005,64195.0,64194.0,0.1423]
[1721385330866,0.005,64195.0,64194.0,0.609632]
[1721385331082,0.155763,64200.0,64196.0,0.1455]
[1721385331295,0.155763,64200.0,64198.0,0.082]
[1721385331509,0.155763,64200.0,64198.0,0.1455]
[1721385331755,0.155763,64200.0,64199.0,0.00656771]
[1721385331963,0.155763,64200.0,64199.0,0.14706771]
[1721385332141,0.155763,64200.0,64199.0,0.1405]
[1721385332380,0.155763,64200.0,64199.0,0.14702586]
[1721385332806,0.07006723,64205.0,64201.0,0.0823]
[1721385333045,0.07006723,64210.0,64207.0,0.1442]
[1721385333266,0.07006723,64210.0,64201.0,0.0896]
[1721385333267,0.07006723,64214.0,64210.0,0.1442]
[1721385333483,0.07006723,64214.0,64208.0,0.00652325]
[1721385333484,0.00083,64215.0,64213.0,0.1442]